[Event "Late-Titled-Tuesday-Blitz-June-18-2024"]
[Site "Chess.com"]
[Date "2024.06.18"]
[Round "7"]
[White "tptagain"]
[Black "OverallStranger"]
[Result "1/2-1/2"]
[WhiteElo "2943"]
[BlackElo "2420"]
[TimeControl "180+1"]
[EndTime "15:20:08 PDT"]
[Termination "Game drawn by repetition"]

1. d4 {[%clk 0:03:00.9]} 1... Nf6 {[%clk 0:03:00.1]} 2. Nf3 {[%clk 0:03:01.5]}
2... e6 {[%clk 0:03:00.6]} 3. Bg5 {[%clk 0:03:02]} 3... h6 {[%clk 0:03:00.6]} 4.
Bxf6 {[%clk 0:03:02.1]} 4... Qxf6 {[%clk 0:03:01]} 5. e4 {[%clk 0:03:02.7]} 5...
d6 {[%clk 0:03:01.3]} 6. Nc3 {[%clk 0:03:01.5]} 6... g6 {[%clk 0:02:59.6]} 7. a4
{[%clk 0:03:01.5]} 7... a6 {[%clk 0:02:57.5]} 8. Qd2 {[%clk 0:02:59.3]} 8... b6
{[%clk 0:02:56.2]} 9. Bd3 {[%clk 0:02:58]} 9... Bb7 {[%clk 0:02:56.2]} 10. O-O
{[%clk 0:02:57.2]} 10... Bg7 {[%clk 0:02:55.2]} 11. Ne2 {[%clk 0:02:57]} 11...
Nd7 {[%clk 0:02:54.7]} 12. c3 {[%clk 0:02:54.9]} 12... O-O {[%clk 0:02:54.4]}
13. Ng3 {[%clk 0:02:51.2]} 13... e5 {[%clk 0:02:44.4]} 14. d5 {[%clk 0:02:42.6]}
14... Nc5 {[%clk 0:02:13.3]} 15. Bc2 {[%clk 0:02:42.6]} 15... a5 {[%clk
0:02:10.8]} 16. b4 {[%clk 0:02:42.6]} 16... Nd7 {[%clk 0:02:09.1]} 17. Bd3
{[%clk 0:02:41.1]} 17... Ra7 {[%clk 0:02:06.5]} 18. Bb5 {[%clk 0:02:39.4]} 18...
Qe7 {[%clk 0:02:02.1]} 19. Qd3 {[%clk 0:02:35.9]} 19... Rfa8 {[%clk 0:01:56.1]}
20. Qc4 {[%clk 0:02:27.4]} 20... Nf6 {[%clk 0:01:40.2]} 21. Rfe1 {[%clk
0:01:38.8]} 21... Ba6 {[%clk 0:01:37.2]} 22. Nd2 {[%clk 0:01:37.8]} 22... Bxb5
{[%clk 0:01:20.7]} 23. Qxb5 {[%clk 0:01:20.7]} 23... axb4 {[%clk 0:00:58.1]} 24.
cxb4 {[%clk 0:01:19.8]} 24... Qd7 {[%clk 0:00:58.6]} 25. Qxd7 {[%clk 0:01:02.8]}
25... Nxd7 {[%clk 0:00:58.5]} 26. Rec1 {[%clk 0:01:03.4]} 26... Bf6 {[%clk
0:00:43]} 27. Ngf1 {[%clk 0:00:59.6]} 27... Bd8 {[%clk 0:00:39.3]} 28. Nc4
{[%clk 0:00:37.4]} 28... Rxa4 {[%clk 0:00:39.2]} 29. Rxa4 {[%clk 0:00:37.5]}
29... Rxa4 {[%clk 0:00:40.1]} 30. Nxd6 {[%clk 0:00:38.1]} 30... cxd6 {[%clk
0:00:29.1]} 31. Rc8 {[%clk 0:00:39]} 31... Kf8 {[%clk 0:00:27.6]} 32. Rxd8+
{[%clk 0:00:39.3]} 32... Ke7 {[%clk 0:00:28.2]} 33. Rc8 {[%clk 0:00:38.8]} 33...
Rxb4 {[%clk 0:00:26.4]} 34. f3 {[%clk 0:00:39.5]} 34... Rb1 {[%clk 0:00:18.8]}
35. Kf2 {[%clk 0:00:39.2]} 35... b5 {[%clk 0:00:19.2]} 36. Nd2 {[%clk
0:00:33.2]} 36... Rb2 {[%clk 0:00:19.6]} 37. Ke3 {[%clk 0:00:33.4]} 37... Nc5
{[%clk 0:00:19.4]} 38. Rc7+ {[%clk 0:00:33.3]} 38... Kf6 {[%clk 0:00:19.3]} 39.
Rc6 {[%clk 0:00:29.5]} 39... Ke7 {[%clk 0:00:18.7]} 40. Rc7+ {[%clk 0:00:30]}
40... Ke8 {[%clk 0:00:09.8]} 41. g4 {[%clk 0:00:29.6]} 41... Nb3 {[%clk
0:00:08.5]} 42. Nxb3 {[%clk 0:00:26.9]} 42... Rxb3+ {[%clk 0:00:09.4]} 43. Kf2
{[%clk 0:00:25.6]} 43... Rb2+ {[%clk 0:00:10.3]} 44. Kg3 {[%clk 0:00:26]} 44...
b4 {[%clk 0:00:09.7]} 45. h4 {[%clk 0:00:24.5]} 45... Rb1 {[%clk 0:00:09.3]} 46.
Rb7 {[%clk 0:00:23.3]} 46... b3 {[%clk 0:00:09.4]} 47. g5 {[%clk 0:00:23.3]}
47... hxg5 {[%clk 0:00:07.8]} 48. hxg5 {[%clk 0:00:24.2]} 48... b2 {[%clk
0:00:08.3]} 49. Kg2 {[%clk 0:00:24.3]} 49... Kd8 {[%clk 0:00:06.6]} 50. Rb8+
{[%clk 0:00:23.9]} 50... Kc7 {[%clk 0:00:07]} 51. Rb3 {[%clk 0:00:24.5]} 51...
Kd7 {[%clk 0:00:05.4]} 52. Rb4 {[%clk 0:00:24.4]} 52... Ke7 {[%clk 0:00:06.1]}
53. Rb7+ {[%clk 0:00:24.4]} 53... Kf8 {[%clk 0:00:06.7]} 54. Rb8+ {[%clk
0:00:24.8]} 54... Kg7 {[%clk 0:00:07.3]} 55. Rb7 {[%clk 0:00:25.4]} 55... Kg8
{[%clk 0:00:07.3]} 56. Rb8+ {[%clk 0:00:25.6]} 56... Kh7 {[%clk 0:00:07.9]} 57.
Rb7 {[%clk 0:00:26.5]} 57... Kg7 {[%clk 0:00:08.5]} 58. Rb6 {[%clk 0:00:24]}
58... Kf8 {[%clk 0:00:07.9]} 59. Rb8+ {[%clk 0:00:21.9]} 59... Ke7 {[%clk
0:00:07.8]} 60. Rb7+ {[%clk 0:00:21]} 60... Ke8 {[%clk 0:00:08.7]} 61. Rb8+
{[%clk 0:00:20.4]} 61... Kd7 {[%clk 0:00:09.4]} 62. Rb7+ {[%clk 0:00:21.1]}
62... Kd8 {[%clk 0:00:10.1]} 63. Rb8+ {[%clk 0:00:21.2]} 63... Kc7 {[%clk
0:00:10.4]} 64. Rb3 {[%clk 0:00:21.9]} 64... Kc8 {[%clk 0:00:10.9]} 65. Rb6
{[%clk 0:00:21.6]} 65... Kc7 {[%clk 0:00:11.5]} 66. Rb3 {[%clk 0:00:22]} 1/2-1/2

[Event "Late-Titled-Tuesday-Blitz-June-18-2024"]
[Site "Chess.com"]
[Date "2024.06.18"]
[Round "7"]
[White "Meri-Arabidze"]
[Black "Matalon"]
[Result "1-0"]
[WhiteElo "2678"]
[BlackElo "2497"]
[TimeControl "180+1"]
[EndTime "15:20:09 PDT"]
[Termination "Meri-Arabidze won on time"]

1. c4 {[%clk 0:03:00.9]} 1... Nf6 {[%clk 0:02:55.7]} 2. Nc3 {[%clk 0:03:00.7]}
2... g6 {[%clk 0:02:55]} 3. g3 {[%clk 0:02:57.4]} 3... d6 {[%clk 0:02:55.4]} 4.
Bg2 {[%clk 0:02:57.6]} 4... Bg7 {[%clk 0:02:56.1]} 5. Nf3 {[%clk 0:02:56.8]}
5... O-O {[%clk 0:02:56.7]} 6. d4 {[%clk 0:02:56.5]} 6... Nc6 {[%clk 0:02:56.9]}
7. O-O {[%clk 0:02:56.5]} 7... Bg4 {[%clk 0:02:56.6]} 8. d5 {[%clk 0:02:46.7]}
8... Na5 {[%clk 0:02:55.9]} 9. Nd2 {[%clk 0:02:43.6]} 9... c5 {[%clk 0:02:56.2]}
10. Qc2 {[%clk 0:02:41.7]} 10... a6 {[%clk 0:02:56.3]} 11. h3 {[%clk 0:02:38]}
11... Bd7 {[%clk 0:02:55]} 12. a4 {[%clk 0:02:30.9]} 12... Ne8 {[%clk
0:02:50.4]} 13. Rb1 {[%clk 0:02:13.9]} 13... Rb8 {[%clk 0:02:08.9]} 14. b3
{[%clk 0:02:10.8]} 14... b5 {[%clk 0:02:07.8]} 15. axb5 {[%clk 0:02:04.1]} 15...
axb5 {[%clk 0:02:08.7]} 16. Bb2 {[%clk 0:02:00]} 16... bxc4 {[%clk 0:01:54.1]}
17. bxc4 {[%clk 0:02:00.9]} 17... Rb4 {[%clk 0:01:44.8]} 18. Ba3 {[%clk
0:02:00.7]} 18... Rxc4 {[%clk 0:01:38]} 19. Nxc4 {[%clk 0:01:57]} 19... Nxc4
{[%clk 0:01:38]} 20. Bc1 {[%clk 0:01:57]} 20... Qa5 {[%clk 0:01:26.8]} 21. Ne4
{[%clk 0:01:47.6]} 21... Nb6 {[%clk 0:01:21.9]} 22. Bd2 {[%clk 0:01:24.5]} 22...
Qa6 {[%clk 0:01:16.2]} 23. Bc3 {[%clk 0:01:15]} 23... Nxd5 {[%clk 0:00:47.2]}
24. Bxg7 {[%clk 0:01:13.9]} 24... Nxg7 {[%clk 0:00:47.3]} 25. Nxc5 {[%clk
0:01:13.4]} 25... dxc5 {[%clk 0:00:40.7]} 26. Bxd5 {[%clk 0:01:12.6]} 26... Bxh3
{[%clk 0:00:40.8]} 27. Rfc1 {[%clk 0:01:02.9]} 27... Nf5 {[%clk 0:00:22]} 28. e3
{[%clk 0:00:52.1]} 28... Qf6 {[%clk 0:00:12.7]} 29. Qxc5 {[%clk 0:00:48.4]}
29... Qg5 {[%clk 0:00:12.8]} 30. Bg2 {[%clk 0:00:42.9]} 30... Bxg2 {[%clk
0:00:11.2]} 31. Kxg2 {[%clk 0:00:43.8]} 31... Nh4+ {[%clk 0:00:11.2]} 32. Kf1
{[%clk 0:00:43.9]} 32... Nf3 {[%clk 0:00:11.2]} 33. Qxg5 {[%clk 0:00:42.7]}
33... Nxg5 {[%clk 0:00:10.5]} 34. Rc7 {[%clk 0:00:42.9]} 34... e6 {[%clk
0:00:10.4]} 35. Rbb7 {[%clk 0:00:42.7]} 35... Ne4 {[%clk 0:00:10.3]} 36. Kg2
{[%clk 0:00:41.2]} 36... h5 {[%clk 0:00:08.9]} 37. Ra7 {[%clk 0:00:40.7]} 37...
Nf6 {[%clk 0:00:09.1]} 38. Kf3 {[%clk 0:00:37.4]} 38... Nd5 {[%clk 0:00:09.5]}
39. Rcb7 {[%clk 0:00:36.9]} 39... Nf6 {[%clk 0:00:09.5]} 40. e4 {[%clk
0:00:36.9]} 40... Ng4 {[%clk 0:00:09.4]} 41. Ke2 {[%clk 0:00:29.7]} 41... Kg7
{[%clk 0:00:08.9]} 42. f3 {[%clk 0:00:29.4]} 42... Nf6 {[%clk 0:00:08.8]} 43.
Ke3 {[%clk 0:00:28.5]} 43... Nh7 {[%clk 0:00:07]} 44. e5 {[%clk 0:00:22.7]}
44... Ng5 {[%clk 0:00:05.7]} 45. Kf4 {[%clk 0:00:22.4]} 45... Nh7 {[%clk
0:00:05.3]} 46. Rc7 {[%clk 0:00:22.5]} 46... g5+ {[%clk 0:00:05]} 47. Ke4 {[%clk
0:00:22.1]} 47... Kg6 {[%clk 0:00:05.1]} 48. f4 {[%clk 0:00:18.1]} 48... h4
{[%clk 0:00:04]} 49. gxh4 {[%clk 0:00:16.9]} 49... gxh4 {[%clk 0:00:03.7]} 50.
Ra1 {[%clk 0:00:15.5]} 50... Rb8 {[%clk 0:00:02.9]} 51. Rg1+ {[%clk 0:00:15.2]}
51... Kh5 {[%clk 0:00:02.1]} 52. Rxf7 {[%clk 0:00:15.1]} 52... Rb4+ {[%clk
0:00:01.2]} 53. Ke3 {[%clk 0:00:15]} 53... Rb3+ {[%clk 0:00:01.2]} 54. Kd4
{[%clk 0:00:15]} 1-0

[Event "Late-Titled-Tuesday-Blitz-June-18-2024"]
[Site "Chess.com"]
[Date "2024.06.18"]
[Round "7"]
[White "GothamChess"]
[Black "Orest_Vovk"]
[Result "1-0"]
[WhiteElo "2726"]
[BlackElo "2561"]
[TimeControl "180+1"]
[EndTime "15:20:10 PDT"]
[Termination "GothamChess won by checkmate"]

1. e4 {[%clk 0:03:00.9]} 1... g5 {[%clk 0:02:57.9]} 2. h4 {[%clk 0:02:57.5]}
2... g4 {[%clk 0:02:57.8]} 3. Nc3 {[%clk 0:02:46]} 3... d6 {[%clk 0:02:43]} 4.
d4 {[%clk 0:02:39.1]} 4... Bg7 {[%clk 0:02:40.3]} 5. Be3 {[%clk 0:02:34.7]} 5...
c6 {[%clk 0:02:35.1]} 6. h5 {[%clk 0:02:32.3]} 6... h6 {[%clk 0:02:31.5]} 7.
Nge2 {[%clk 0:02:28.1]} 7... Qa5 {[%clk 0:02:30.5]} 8. a3 {[%clk 0:02:24.4]}
8... b5 {[%clk 0:02:25]} 9. Nc1 {[%clk 0:02:01.7]} 9... g3 {[%clk 0:02:05.6]}
10. fxg3 {[%clk 0:01:57.6]} 10... Nf6 {[%clk 0:02:02.1]} 11. Nb3 {[%clk
0:01:51.7]} 11... Qb6 {[%clk 0:01:57.4]} 12. Be2 {[%clk 0:01:51.7]} 12... Rg8
{[%clk 0:01:51.7]} 13. O-O {[%clk 0:01:48.8]} 13... Bh8 {[%clk 0:01:51.2]} 14.
Bxh6 {[%clk 0:01:42.9]} 14... Rxg3 {[%clk 0:01:43.3]} 15. Bf4 {[%clk 0:01:39]}
15... Rg8 {[%clk 0:01:38.7]} 16. e5 {[%clk 0:01:33.2]} 16... dxe5 {[%clk
0:01:31.5]} 17. Bxe5 {[%clk 0:01:33.5]} 17... Nbd7 {[%clk 0:01:20.3]} 18. Bh2
{[%clk 0:01:15.1]} 18... Nf8 {[%clk 0:01:07.8]} 19. Kh1 {[%clk 0:01:13.1]} 19...
Ng4 {[%clk 0:01:02.7]} 20. Bxg4 {[%clk 0:00:56.7]} 20... Bxg4 {[%clk 0:01:01.9]}
21. Qe1 {[%clk 0:00:53.2]} 21... Bxh5 {[%clk 0:00:56.5]} 22. d5 {[%clk
0:00:38.9]} 22... Bxc3 {[%clk 0:00:49.4]} 23. Qxc3 {[%clk 0:00:29]} 23... cxd5
{[%clk 0:00:49]} 24. Rae1 {[%clk 0:00:26.4]} 24... Ne6 {[%clk 0:00:46.3]} 25.
Qe5 {[%clk 0:00:22.4]} 25... Bg4 {[%clk 0:00:32.5]} 26. c3 {[%clk 0:00:19.5]}
26... O-O-O {[%clk 0:00:23.9]} 27. Nd4 {[%clk 0:00:16]} 27... Rh8 {[%clk
0:00:19.4]} 28. Rxf7 {[%clk 0:00:14.3]} 28... Nxd4 {[%clk 0:00:12]} 29. cxd4
{[%clk 0:00:12.5]} 29... Rh5 {[%clk 0:00:05.3]} 30. Rc1+ {[%clk 0:00:06.5]}
30... Kb7 {[%clk 0:00:03.7]} 31. Qxe7+ {[%clk 0:00:05]} 31... Rd7 {[%clk
0:00:04.1]} 32. Qxd7+ {[%clk 0:00:02.8]} 32... Bxd7 {[%clk 0:00:03.6]} 33. Rxd7+
{[%clk 0:00:03.7]} 33... Ka6 {[%clk 0:00:04.1]} 34. Rdc7 {[%clk 0:00:04.3]}
34... Ka5 {[%clk 0:00:02.9]} 35. R7c6 {[%clk 0:00:03.2]} 35... Qxd4 {[%clk
0:00:02.9]} 36. R6c2 {[%clk 0:00:01]} 36... Qf4 {[%clk 0:00:02.7]} 37. g3 {[%clk
0:00:01.4]} 37... Qf3+ {[%clk 0:00:02.8]} 38. Kg1 {[%clk 0:00:01.5]} 38... Re5
{[%clk 0:00:02.3]} 39. Rf2 {[%clk 0:00:01.6]} 39... Qe3 {[%clk 0:00:02.2]} 40.
b4+ {[%clk 0:00:02.4]} 40... Ka4 {[%clk 0:00:02.2]} 41. Rf1 {[%clk 0:00:03.3]}
41... Rf5 {[%clk 0:00:02.3]} 42. Kg2 {[%clk 0:00:03.6]} 42... Rxf2+ {[%clk
0:00:02.8]} 43. Rxf2 {[%clk 0:00:04.5]} 43... Qe4+ {[%clk 0:00:03.4]} 44. Kg1
{[%clk 0:00:04.5]} 44... Kxa3 {[%clk 0:00:03.4]} 45. g4 {[%clk 0:00:04.8]} 45...
Kxb4 {[%clk 0:00:03.6]} 46. Rf4 {[%clk 0:00:04.8]} 46... Kc3 {[%clk 0:00:02.1]}
47. Rxe4 {[%clk 0:00:05.1]} 47... dxe4 {[%clk 0:00:03]} 48. g5 {[%clk
0:00:05.6]} 48... e3 {[%clk 0:00:03.4]} 49. Bg3 {[%clk 0:00:05.8]} 49... e2
{[%clk 0:00:03.8]} 50. g6 {[%clk 0:00:06.4]} 50... b4 {[%clk 0:00:04.1]} 51. g7
{[%clk 0:00:07]} 51... b3 {[%clk 0:00:05]} 52. g8=Q {[%clk 0:00:07.6]} 52... b2
{[%clk 0:00:05.9]} 53. Qc8+ {[%clk 0:00:08.2]} 53... Kd2 {[%clk 0:00:06.2]} 54.
Qd7+ {[%clk 0:00:08.4]} 54... Kc2 {[%clk 0:00:06.8]} 55. Qc6+ {[%clk 0:00:08.8]}
55... Kd1 {[%clk 0:00:07.2]} 56. Qd5+ {[%clk 0:00:09.2]} 56... Kc1 {[%clk
0:00:07.8]} 57. Qc4+ {[%clk 0:00:09.7]} 57... Kd1 {[%clk 0:00:08.2]} 58. Qd3+
{[%clk 0:00:10]} 58... Kc1 {[%clk 0:00:08.7]} 59. Bf4# {[%clk 0:00:10.5]} 1-0

[Event "Late-Titled-Tuesday-Blitz-June-18-2024"]
[Site "Chess.com"]
[Date "2024.06.18"]
[Round "7"]
[White "RantomOpening"]
[Black "IMRosen"]
[Result "0-1"]
[WhiteElo "2619"]
[BlackElo "2757"]
[TimeControl "180+1"]
[EndTime "15:20:12 PDT"]
[Termination "IMRosen won by resignation"]

1. c4 {[%clk 0:03:00.8]} 1... e6 {[%clk 0:02:59.9]} 2. Nf3 {[%clk 0:02:59.8]}
2... d5 {[%clk 0:02:59.8]} 3. e3 {[%clk 0:03:00.3]} 3... Nf6 {[%clk 0:02:59.7]}
4. Nc3 {[%clk 0:03:00.4]} 4... Nbd7 {[%clk 0:02:55.5]} 5. b3 {[%clk 0:02:59.5]}
5... b6 {[%clk 0:02:55.6]} 6. Bb2 {[%clk 0:02:59.4]} 6... Bb7 {[%clk 0:02:55.8]}
7. d4 {[%clk 0:02:59.5]} 7... a6 {[%clk 0:02:56.3]} 8. Be2 {[%clk 0:02:58.9]}
8... Bd6 {[%clk 0:02:56.4]} 9. O-O {[%clk 0:02:58.7]} 9... O-O {[%clk
0:02:56.9]} 10. Rc1 {[%clk 0:02:55.2]} 10... Qe7 {[%clk 0:02:56.8]} 11. Qc2
{[%clk 0:02:52.8]} 11... Rac8 {[%clk 0:02:50.8]} 12. Rfd1 {[%clk 0:02:44]} 12...
Rfe8 {[%clk 0:02:50.7]} 13. Bd3 {[%clk 0:02:34.6]} 13... dxc4 {[%clk 0:02:47.1]}
14. bxc4 {[%clk 0:02:29.6]} 14... Bxf3 {[%clk 0:02:47.7]} 15. gxf3 {[%clk
0:02:30.1]} 15... e5 {[%clk 0:02:41.6]} 16. Ne4 {[%clk 0:02:16.3]} 16... Nxe4
{[%clk 0:02:19.1]} 17. Bxe4 {[%clk 0:02:14.8]} 17... Qh4 {[%clk 0:02:19.7]} 18.
Kg2 {[%clk 0:01:48.4]} 18... exd4 {[%clk 0:02:09.1]} 19. f4 {[%clk 0:01:48]}
19... Nf6 {[%clk 0:02:00.3]} 20. Bf5 {[%clk 0:01:43.4]} 20... Ng4 {[%clk
0:01:41.5]} 21. h3 {[%clk 0:01:39.4]} 21... Nf6 {[%clk 0:00:52.1]} 22. Bxc8
{[%clk 0:01:38.2]} 22... Rxc8 {[%clk 0:00:52.8]} 23. Bxd4 {[%clk 0:01:38.4]}
23... Re8 {[%clk 0:00:32]} 24. Qf5 {[%clk 0:01:26.9]} 24... Ne4 {[%clk
0:00:31.6]} 25. Rf1 {[%clk 0:01:21.2]} 25... Re6 {[%clk 0:00:22.2]} 26. Qd5
{[%clk 0:01:02.9]} 26... Rg6+ {[%clk 0:00:20.4]} 27. Kf3 {[%clk 0:01:03]} 27...
Nf6 {[%clk 0:00:07.5]} 28. Qa8+ {[%clk 0:01:01.1]} 28... Bf8 {[%clk 0:00:07.3]}
29. Ke2 {[%clk 0:00:56.7]} 29... Qh5+ {[%clk 0:00:04.6]} 30. Kd2 {[%clk
0:00:51.3]} 30... Qa5+ {[%clk 0:00:03.4]} 31. Ke2 {[%clk 0:00:48.4]} 31... Qxa2+
{[%clk 0:00:03.3]} 32. Kf3 {[%clk 0:00:48.9]} 32... Qa5 {[%clk 0:00:03.5]} 33.
c5 {[%clk 0:00:35.5]} 33... bxc5 {[%clk 0:00:02.4]} 34. Bxc5 {[%clk 0:00:36]}
34... Nd7 {[%clk 0:00:02]} 35. Bxf8 {[%clk 0:00:20.1]} 35... Qh5+ {[%clk
0:00:02.9]} 36. Ke4 {[%clk 0:00:20.6]} 36... Re6+ {[%clk 0:00:02.2]} 37. Kd3
{[%clk 0:00:20.4]} 37... Nxf8 {[%clk 0:00:02.2]} 38. Rc4 {[%clk 0:00:17]} 38...
Rd6+ {[%clk 0:00:01.6]} 39. Rd4 {[%clk 0:00:17.4]} 39... Qb5+ {[%clk 0:00:01.7]}
40. Ke4 {[%clk 0:00:12]} 40... Qxf1 {[%clk 0:00:02.6]} 41. Rb4 {[%clk
0:00:10.3]} 41... Qh1+ {[%clk 0:00:02.9]} 42. f3 {[%clk 0:00:10.3]} 42... Re6+
{[%clk 0:00:03.5]} 43. Kd4 {[%clk 0:00:09.3]} 43... Qd1+ {[%clk 0:00:03.8]} 44.
Kc5 {[%clk 0:00:08.2]} 44... Qc2+ {[%clk 0:00:03.3]} 45. Rc4 {[%clk 0:00:08.5]}
45... Qe2 {[%clk 0:00:02.8]} 46. Re4 {[%clk 0:00:07.1]} 46... Qc2+ {[%clk
0:00:02.6]} 47. Kb4 {[%clk 0:00:06.5]} 47... Qb2+ {[%clk 0:00:02.7]} 48. Kc4
{[%clk 0:00:06.4]} 48... Qb5+ {[%clk 0:00:03]} 49. Kd4 {[%clk 0:00:07.3]} 49...
Rd6+ {[%clk 0:00:03.4]} 50. Kc3 {[%clk 0:00:07.7]} 50... Rc6+ {[%clk 0:00:03.8]}
51. Kd2 {[%clk 0:00:07.2]} 51... Qd5+ {[%clk 0:00:04.3]} 52. Rd4 {[%clk
0:00:07.1]} 52... Rc2+ {[%clk 0:00:04.2]} 53. Kxc2 {[%clk 0:00:06.1]} 53... Qxa8
{[%clk 0:00:04.9]} 0-1

[Event "Late-Titled-Tuesday-Blitz-June-18-2024"]
[Site "Chess.com"]
[Date "2024.06.18"]
[Round "7"]
[White "Mops_2004"]
[Black "champ2005"]
[Result "1-0"]
[WhiteElo "2837"]
[BlackElo "3054"]
[TimeControl "180+1"]
[EndTime "15:20:13 PDT"]
[Termination "Mops_2004 won by resignation"]

1. g3 {[%clk 0:03:00.9]} 1... e5 {[%clk 0:02:58.4]} 2. c4 {[%clk 0:02:59.9]}
2... Nc6 {[%clk 0:02:58]} 3. Bg2 {[%clk 0:02:59.7]} 3... Bc5 {[%clk 0:02:58.7]}
4. Nc3 {[%clk 0:02:59.4]} 4... d6 {[%clk 0:02:58.1]} 5. e3 {[%clk 0:02:58.3]}
5... a6 {[%clk 0:02:57.9]} 6. Nge2 {[%clk 0:02:58]} 6... Ba7 {[%clk 0:02:57.9]}
7. d4 {[%clk 0:02:54.5]} 7... Nge7 {[%clk 0:02:58]} 8. b3 {[%clk 0:02:48]} 8...
h5 {[%clk 0:02:54.2]} 9. h3 {[%clk 0:02:46.8]} 9... h4 {[%clk 0:02:54.3]} 10. g4
{[%clk 0:02:46.7]} 10... f5 {[%clk 0:02:54.7]} 11. gxf5 {[%clk 0:02:40.5]} 11...
Bxf5 {[%clk 0:02:55.6]} 12. d5 {[%clk 0:02:34.7]} 12... Nb8 {[%clk 0:02:49.4]}
13. Ne4 {[%clk 0:02:18.8]} 13... Nd7 {[%clk 0:02:40.2]} 14. N2c3 {[%clk
0:02:18.5]} 14... O-O {[%clk 0:02:33.9]} 15. Qh5 {[%clk 0:02:09.6]} 15... Ng6
{[%clk 0:01:45.9]} 16. Bd2 {[%clk 0:01:56.4]} 16... b5 {[%clk 0:01:33.7]} 17.
cxb5 {[%clk 0:01:51.8]} 17... axb5 {[%clk 0:01:34.6]} 18. Nxb5 {[%clk
0:01:52.3]} 18... Bb6 {[%clk 0:01:33.4]} 19. a4 {[%clk 0:01:41.2]} 19... Qe8
{[%clk 0:01:13.9]} 20. O-O {[%clk 0:01:23]} 20... Nc5 {[%clk 0:00:51.5]} 21.
Nxc5 {[%clk 0:01:16.8]} 21... dxc5 {[%clk 0:00:52.4]} 22. d6 {[%clk 0:01:07.3]}
22... c6 {[%clk 0:00:46.5]} 23. Nc3 {[%clk 0:01:01.7]} 23... Ba5 {[%clk
0:00:39.5]} 24. Ne4 {[%clk 0:00:52.2]} 24... Bxd2 {[%clk 0:00:31.5]} 25. Nxd2
{[%clk 0:00:52.6]} 25... Qd7 {[%clk 0:00:31.7]} 26. Ne4 {[%clk 0:00:43.6]} 26...
Nh8 {[%clk 0:00:23.7]} 27. Rad1 {[%clk 0:00:39.7]} 27... Ra5 {[%clk 0:00:17]}
28. Qxh4 {[%clk 0:00:35.8]} 28... Nf7 {[%clk 0:00:17]} 29. Rd2 {[%clk
0:00:31.7]} 29... Rb8 {[%clk 0:00:16.5]} 30. Rc1 {[%clk 0:00:26.9]} 30... c4
{[%clk 0:00:08.4]} 31. Rxc4 {[%clk 0:00:21.2]} 31... Rd5 {[%clk 0:00:08.6]} 32.
Nc5 {[%clk 0:00:13.9]} 32... Qxd6 {[%clk 0:00:05.8]} 33. Bxd5 {[%clk 0:00:14.4]}
33... cxd5 {[%clk 0:00:06.7]} 34. Re4 {[%clk 0:00:11.1]} 34... Qg6+ {[%clk
0:00:04.9]} 35. Rg4 {[%clk 0:00:11.2]} 35... Bxg4 {[%clk 0:00:05.4]} 36. Qxg4
{[%clk 0:00:11.6]} 36... Qb1+ {[%clk 0:00:05.8]} 37. Kh2 {[%clk 0:00:11.1]}
37... Qc1 {[%clk 0:00:06.2]} 38. Rxd5 {[%clk 0:00:09.8]} 38... Qc2 {[%clk
0:00:05.7]} 39. Ne4 {[%clk 0:00:06.6]} 39... Rf8 {[%clk 0:00:02.8]} 40. Rd7
{[%clk 0:00:05.4]} 40... Kh8 {[%clk 0:00:02.6]} 41. Qf5 {[%clk 0:00:02.3]} 41...
Qxb3 {[%clk 0:00:02.2]} 42. h4 {[%clk 0:00:01.4]} 42... Kg8 {[%clk 0:00:01.9]}
43. Qg6 {[%clk 0:00:01.3]} 43... Kh8 {[%clk 0:00:02.1]} 44. Qf5 {[%clk 0:00:01]}
44... Kg8 {[%clk 0:00:01.8]} 45. Qg4 {[%clk 0:00:01.4]} 45... Kh8 {[%clk
0:00:02.1]} 46. Qh5+ {[%clk 0:00:01.2]} 46... Kg8 {[%clk 0:00:02.2]} 47. Qf5
{[%clk 0:00:01.3]} 47... Qc2 {[%clk 0:00:02]} 48. Nf6+ {[%clk 0:00:01.1]} 48...
gxf6 {[%clk 0:00:02.3]} 49. Qxc2 {[%clk 0:00:02]} 1-0